[Event "Titled Tuesday Blitz October 11 Early 2022"]
[White "Troltenier, Dirk"]
[Black "Urbina Perez, Juan Antonio"]
[WhiteFideId "4606400"]
[BlackFideId "2217368"]
[WhiteElo "2279"]
[BlackElo "2197"]
[Result "0-1"]
[Round "05"]
[TimeControl "180+1"]
[Date "2022.10.12"]
[WhiteClock "0:00:01"]
[BlackClock "0:00:22"]

1. e4 {[%clk 0:02:58]}  c5 {[%clk 0:02:57]} 2. c3 {[%clk 0:02:58]}  g6 {[%clk 0:02:54]} 3. d4 {[%clk 0:02:58]}  cxd4 {[%clk 0:02:54]} 4. cxd4 {[%clk 0:02:59]}  Bg7 {[%clk 0:02:53]} 5. Nc3 {[%clk 0:02:59]}  d5 {[%clk 0:02:51]} 6. exd5 {[%clk 0:02:58]}  Nf6 {[%clk 0:02:50]} 7. Qb3 {[%clk 0:02:58]}  O-O {[%clk 0:02:48]} 8. Be2 {[%clk 0:02:58]}  Nbd7 {[%clk 0:02:46]} 9. Bf3 {[%clk 0:02:58]}  Nb6 {[%clk 0:02:46]} 10. a4 {[%clk 0:02:58]}  a5 {[%clk 0:02:37]} 11. Nge2 {[%clk 0:02:57]}  Bg4 {[%clk 0:02:30]} 12. Bxg4 {[%clk 0:02:56]}  Nxg4 {[%clk 0:02:31]} 13. O-O {[%clk 0:02:51]}  Nf6 {[%clk 0:02:31]} 14. Nf4 {[%clk 0:02:50]}  g5 {[%clk 0:02:31]} 15. Nd3 {[%clk 0:02:49]}  Nfxd5 {[%clk 0:02:28]} 16. Bxg5 {[%clk 0:02:31]}  Bxd4 {[%clk 0:02:25]} 17. Rad1 {[%clk 0:02:14]}  Nxc3 {[%clk 0:02:21]} 18. bxc3 {[%clk 0:02:10]}  Bg7 {[%clk 0:02:21]} 19. Rfe1 {[%clk 0:02:00]}  Qd5 {[%clk 0:02:13]} 20. Qxb6 {[%clk 0:01:22]}  Qxg5 {[%clk 0:02:11]} 21. Re3 {[%clk 0:01:11]}  Kh8 {[%clk 0:02:08]} 22. Qxb7 {[%clk 0:01:00]}  e6 {[%clk 0:02:05]} 23. Rg3 {[%clk 0:00:31]}  Qh5 {[%clk 0:02:04]} 24. Qf3 {[%clk 0:00:30]}  Qh4 {[%clk 0:01:57]} 25. Nf4 {[%clk 0:00:23]}  Rad8 {[%clk 0:01:47]} 26. Nh5 {[%clk 0:00:23]}  Be5 {[%clk 0:01:30]} 27. Rg4 {[%clk 0:00:15]}  Qe7 {[%clk 0:01:24]} 28. Re1 {[%clk 0:00:12]}  Rd5 {[%clk 0:01:03]} 29. Rge4 {[%clk 0:00:11]}  Bg7 {[%clk 0:00:50]} 30. Nxg7 {[%clk 0:00:11]}  Kxg7 {[%clk 0:00:51]} 31. Rg4+ {[%clk 0:00:10]}  Rg5 {[%clk 0:00:52]} 32. Qg3 {[%clk 0:00:09]}  Rxg4 {[%clk 0:00:49]} 33. Qxg4+ {[%clk 0:00:10]}  Kh8 {[%clk 0:00:49]} 34. Qd4+ {[%clk 0:00:10]}  f6 {[%clk 0:00:49]} 35. g3 {[%clk 0:00:10]}  Rd8 {[%clk 0:00:48]} 36. Qe4 {[%clk 0:00:09]}  e5 {[%clk 0:00:46]} 37. Rb1 {[%clk 0:00:07]}  Qd6 {[%clk 0:00:25]} 38. Rb7 {[%clk 0:00:06]}  Qd1+ {[%clk 0:00:24]} 39. Kg2 {[%clk 0:00:06]}  Qd5 {[%clk 0:00:25]} 40. Qxd5 {[%clk 0:00:06]}  Rxd5 {[%clk 0:00:26]} 41. Rf7 {[%clk 0:00:06]}  Rd6 {[%clk 0:00:25]} 42. Ra7 {[%clk 0:00:06]}  Rc6 {[%clk 0:00:26]} 43. Rxa5 {[%clk 0:00:04]}  Rxc3 {[%clk 0:00:26]} 44. Ra7 {[%clk 0:00:04]}  Ra3 {[%clk 0:00:23]} 45. h4 {[%clk 0:00:04]}  f5 {[%clk 0:00:22]} 46. h5 {[%clk 0:00:04]}  h6 {[%clk 0:00:22]} 47. f3 {[%clk 0:00:01]}  e4 {[%clk 0:00:20]} 48. fxe4 {[%clk 0:00:01]}  fxe4 {[%clk 0:00:21]} 49. a5 {[%clk 0:00:01]}  Ra2+ {[%clk 0:00:21]} 50. Kf1 {[%clk 0:00:01]}  e3 {[%clk 0:00:22]} 0-1


[Site "https://www.chess.com"]

[Event "Titled Tuesday Blitz October 11 Early 2022"]
[White "Turayev, Shahruh"]
[Black "Trimitzios, Petros"]
[WhiteFideId "14003856"]
[BlackFideId "25808796"]
[WhiteElo "2627"]
[BlackElo "2806"]
[Result "0-1"]
[Round "05"]
[TimeControl "180+1"]
[Date "2022.10.12"]
[WhiteClock "0:00:49"]
[BlackClock "0:02:35"]

1. e4 {[%clk 0:03:00]}  e5 {[%clk 0:03:00]} 2. Nc3 {[%clk 0:03:01]}  Nc6 {[%clk 0:03:00]} 3. Bc4 {[%clk 0:03:02]}  Bc5 {[%clk 0:03:00]} 4. Qg4 {[%clk 0:03:02]}  g6 {[%clk 0:02:58]} 5. Qf3 {[%clk 0:03:02]}  Nf6 {[%clk 0:02:58]} 6. Nge2 {[%clk 0:03:02]}  Be7 {[%clk 0:02:57]} 7. d3 {[%clk 0:03:01]}  d6 {[%clk 0:02:56]} 8. h3 {[%clk 0:03:01]}  h6 {[%clk 0:02:56]} 9. g4 {[%clk 0:02:57]}  Na5 {[%clk 0:02:54]} 10. Ng3 {[%clk 0:02:30]}  Nxc4 {[%clk 0:02:54]} 11. dxc4 {[%clk 0:02:30]}  Be6 {[%clk 0:02:53]} 12. b3 {[%clk 0:02:30]}  c6 {[%clk 0:02:53]} 13. g5 {[%clk 0:02:12]}  hxg5 {[%clk 0:02:52]} 14. Bxg5 {[%clk 0:02:13]}  Rxh3 {[%clk 0:02:50]} 15. Rxh3 {[%clk 0:02:02]}  Bxh3 {[%clk 0:02:50]} 16. Bxf6 {[%clk 0:01:54]}  Bxf6 {[%clk 0:02:50]} 17. Nh5 {[%clk 0:01:52]}  gxh5 {[%clk 0:02:48]} 18. Qxh3 {[%clk 0:01:51]}  h4 {[%clk 0:02:49]} 19. O-O-O {[%clk 0:01:50]}  Qd7 {[%clk 0:02:48]} 20. Qf5 {[%clk 0:01:39]}  Qxf5 {[%clk 0:02:44]} 21. exf5 {[%clk 0:01:40]}  Ke7 {[%clk 0:02:42]} 22. Ne4 {[%clk 0:01:38]}  Rd8 {[%clk 0:02:42]} 23. Rh1 {[%clk 0:01:34]}  Rh8 {[%clk 0:02:40]} 24. Kd2 {[%clk 0:01:17]}  d5 {[%clk 0:02:39]} 25. cxd5 {[%clk 0:01:15]}  cxd5 {[%clk 0:02:40]} 26. Nc5 {[%clk 0:01:15]}  b6 {[%clk 0:02:39]} 27. Nd3 {[%clk 0:01:16]}  Bg5+ {[%clk 0:02:37]} 28. Ke2 {[%clk 0:01:15]}  e4 {[%clk 0:02:37]} 29. Ne1 {[%clk 0:01:15]}  Kd6 {[%clk 0:02:36]} 30. f3 {[%clk 0:01:11]}  Ke5 {[%clk 0:02:35]} 31. fxe4 {[%clk 0:01:11]}  dxe4 {[%clk 0:02:36]} 32. c4 {[%clk 0:00:58]}  Kxf5 {[%clk 0:02:36]} 33. Nc2 {[%clk 0:00:58]}  Ke5 {[%clk 0:02:36]} 34. Rg1 {[%clk 0:00:55]}  f6 {[%clk 0:02:35]} 35. Rh1 {[%clk 0:00:53]}  f5 {[%clk 0:02:35]} 36. Rh3 {[%clk 0:00:50]}  f4 {[%clk 0:02:35]} 37. Ne1 {[%clk 0:00:49]}  f3+ {[%clk 0:02:35]} 0-1


[Site "https://www.chess.com"]

[Event "Titled Tuesday Blitz October 11 Early 2022"]
[White "Vaibhav Jayant Raut"]
[Black "Kodinets, Konstantin L."]
[WhiteFideId "5089034"]
[BlackFideId "4122011"]
[WhiteElo "2776"]
[BlackElo "2600"]
[Result "1-0"]
[Round "05"]
[TimeControl "180+1"]
[Date "2022.10.12"]
[WhiteClock "0:00:07"]
[BlackClock "0:00:18"]

1. c4 {[%clk 0:03:00]}  c6 {[%clk 0:02:59]} 2. Nf3 {[%clk 0:02:59]}  d6 {[%clk 0:02:59]} 3. Nc3 {[%clk 0:02:58]}  e5 {[%clk 0:02:57]} 4. d4 {[%clk 0:02:57]}  Nd7 {[%clk 0:02:58]} 5. e4 {[%clk 0:02:55]}  Be7 {[%clk 0:02:59]} 6. Be2 {[%clk 0:02:55]}  Ngf6 {[%clk 0:02:59]} 7. O-O {[%clk 0:02:55]}  O-O {[%clk 0:03:00]} 8. h3 {[%clk 0:02:55]}  a6 {[%clk 0:03:00]} 9. a4 {[%clk 0:02:49]}  a5 {[%clk 0:03:00]} 10. Be3 {[%clk 0:02:47]}  exd4 {[%clk 0:03:00]} 11. Bxd4 {[%clk 0:02:44]}  Qc7 {[%clk 0:02:58]} 12. Qc2 {[%clk 0:02:41]}  Re8 {[%clk 0:02:58]} 13. Rad1 {[%clk 0:02:41]}  Ne5 {[%clk 0:02:53]} 14. Rfe1 {[%clk 0:02:37]}  Nfd7 {[%clk 0:02:52]} 15. Nd2 {[%clk 0:02:10]}  Ng6 {[%clk 0:02:49]} 16. Bf1 {[%clk 0:02:05]}  Bf6 {[%clk 0:02:45]} 17. Nf3 {[%clk 0:02:00]}  Nge5 {[%clk 0:02:38]} 18. Nxe5 {[%clk 0:01:57]}  dxe5 {[%clk 0:02:36]} 19. Be3 {[%clk 0:01:56]}  Be7 {[%clk 0:02:36]} 20. c5 {[%clk 0:01:38]}  Nxc5 {[%clk 0:02:33]} 21. Bc4 {[%clk 0:01:36]}  Qb6 {[%clk 0:02:08]} 22. Ne2 {[%clk 0:01:28]}  Qb4 {[%clk 0:02:03]} 23. b3 {[%clk 0:01:24]}  Ne6 {[%clk 0:01:59]} 24. Ng3 {[%clk 0:01:04]}  g6 {[%clk 0:01:57]} 25. Ne2 {[%clk 0:01:02]}  Bf8 {[%clk 0:01:40]} 26. Nc3 {[%clk 0:00:58]}  Qe7 {[%clk 0:01:35]} 27. Ne2 {[%clk 0:00:54]}  Qh4 {[%clk 0:01:30]} 28. Qb2 {[%clk 0:00:46]}  Nf4 {[%clk 0:01:22]} 29. Nxf4 {[%clk 0:00:25]}  exf4 {[%clk 0:01:23]} 30. Bd4 {[%clk 0:00:25]}  f3 {[%clk 0:01:20]} 31. Bf1 {[%clk 0:00:25]}  fxg2 {[%clk 0:01:17]} 32. Bxg2 {[%clk 0:00:25]}  Bxh3 {[%clk 0:01:16]} 33. Bf6 {[%clk 0:00:21]}  Qh5 {[%clk 0:01:13]} 34. Bxh3 {[%clk 0:00:17]}  Qxh3 {[%clk 0:01:12]} 35. Qc3 {[%clk 0:00:17]}  Qg4+ {[%clk 0:01:09]} 36. Qg3 {[%clk 0:00:14]}  Rxe4 {[%clk 0:01:07]} 37. Rxe4 {[%clk 0:00:12]}  Qxe4 {[%clk 0:01:07]} 38. Rd7 {[%clk 0:00:10]}  b5 {[%clk 0:00:55]} 39. Qc7 {[%clk 0:00:08]}  Qe6 {[%clk 0:00:49]} 40. Bd4 {[%clk 0:00:08]}  Qxb3 {[%clk 0:00:45]} 41. Qxc6 {[%clk 0:00:08]}  Re8 {[%clk 0:00:40]} 42. Qf6 {[%clk 0:00:08]}  Qd1+ {[%clk 0:00:28]} 43. Kh2 {[%clk 0:00:07]}  Qh5+ {[%clk 0:00:23]} 44. Kg3 {[%clk 0:00:08]}  Bd6+ {[%clk 0:00:19]} 45. Rxd6 {[%clk 0:00:07]}  Kf8 {[%clk 0:00:18]} 46. Rd7 {[%clk 0:00:07]} 1-0


[Site "https://www.chess.com"]

[Event "Titled Tuesday Blitz October 11 Early 2022"]
[White "Velikanov, Alexander"]
[Black "Lopez, Henry"]
[WhiteFideId "2039290"]
[BlackFideId "5203830"]
[WhiteElo "2750"]
[BlackElo "2565"]
[Result "0-1"]
[Round "05"]
[TimeControl "180+1"]
[Date "2022.10.12"]
[WhiteClock "0:00:18"]
[BlackClock "0:01:04"]

1. Nf3 {[%clk 0:03:00]}  c5 {[%clk 0:02:38]} 2. g3 {[%clk 0:03:01]}  b6 {[%clk 0:02:38]} 3. Bg2 {[%clk 0:03:01]}  Bb7 {[%clk 0:02:39]} 4. O-O {[%clk 0:03:01]}  Nf6 {[%clk 0:02:39]} 5. c4 {[%clk 0:02:53]}  e6 {[%clk 0:02:38]} 6. Nc3 {[%clk 0:02:52]}  Be7 {[%clk 0:02:39]} 7. e3 {[%clk 0:02:49]}  d6 {[%clk 0:02:39]} 8. d4 {[%clk 0:02:49]}  O-O {[%clk 0:02:37]} 9. d5 {[%clk 0:02:49]}  exd5 {[%clk 0:02:36]} 10. cxd5 {[%clk 0:02:50]}  a6 {[%clk 0:02:24]} 11. a4 {[%clk 0:02:49]}  Nbd7 {[%clk 0:02:24]} 12. Nh4 {[%clk 0:02:49]}  g6 {[%clk 0:02:24]} 13. e4 {[%clk 0:02:44]}  Re8 {[%clk 0:02:23]} 14. f4 {[%clk 0:02:17]}  Rb8 {[%clk 0:02:22]} 15. Nf3 {[%clk 0:02:06]}  Bf8 {[%clk 0:02:19]} 16. e5 {[%clk 0:02:05]}  dxe5 {[%clk 0:02:18]} 17. fxe5 {[%clk 0:02:06]}  Nxe5 {[%clk 0:02:18]} 18. Nxe5 {[%clk 0:02:07]}  Rxe5 {[%clk 0:02:17]} 19. Bf4 {[%clk 0:02:08]}  Bd6 {[%clk 0:02:17]} 20. Bxe5 {[%clk 0:02:06]}  Bxe5 {[%clk 0:02:17]} 21. Qd3 {[%clk 0:01:55]}  Qd6 {[%clk 0:01:56]} 22. Kh1 {[%clk 0:01:38]}  Bd4 {[%clk 0:01:43]} 23. Ne4 {[%clk 0:01:35]}  Nxe4 {[%clk 0:01:42]} 24. Qxe4 {[%clk 0:01:36]}  Rd8 {[%clk 0:01:31]} 25. Rad1 {[%clk 0:01:04]}  Bxb2 {[%clk 0:01:20]} 26. Qf3 {[%clk 0:00:46]}  Rd7 {[%clk 0:01:16]} 27. Qe2 {[%clk 0:00:28]}  Bd4 {[%clk 0:01:14]} 28. Qe8+ {[%clk 0:00:28]}  Kg7 {[%clk 0:01:13]} 29. Rf4 {[%clk 0:00:18]}  Re7 {[%clk 0:01:04]} 0-1


[Site "https://www.chess.com"]

[Event "Titled Tuesday Blitz October 11 Early 2022"]
[White "Weetik, Vjacheslav"]
[Black "Cnejev, Vladimir-Alexandru"]
[WhiteFideId "4153472"]
[BlackFideId "1260898"]
[WhiteElo "2469"]
[BlackElo "2193"]
[Result "1-0"]
[Round "05"]
[TimeControl "180+1"]
[Date "2022.10.12"]
[WhiteClock "0:00:07"]
[BlackClock "0:00:02"]

1. e4 {[%clk 0:02:59]}  e5 {[%clk 0:03:00]} 2. Nf3 {[%clk 0:02:58]}  Nc6 {[%clk 0:03:00]} 3. Nc3 {[%clk 0:02:59]}  Nf6 {[%clk 0:03:00]} 4. Bb5 {[%clk 0:02:58]}  Bb4 {[%clk 0:02:59]} 5. O-O {[%clk 0:02:58]}  O-O {[%clk 0:02:59]} 6. d3 {[%clk 0:02:59]}  d6 {[%clk 0:02:58]} 7. Ne2 {[%clk 0:02:59]}  Ne7 {[%clk 0:02:58]} 8. c3 {[%clk 0:02:59]}  Ba5 {[%clk 0:02:57]} 9. Ng3 {[%clk 0:02:59]}  c6 {[%clk 0:02:57]} 10. Ba4 {[%clk 0:03:00]}  Ng6 {[%clk 0:02:57]} 11. d4 {[%clk 0:02:59]}  h6 {[%clk 0:02:54]} 12. h3 {[%clk 0:02:54]}  Re8 {[%clk 0:02:48]} 13. Re1 {[%clk 0:02:50]}  Bc7 {[%clk 0:02:48]} 14. Bb3 {[%clk 0:02:32]}  d5 {[%clk 0:02:25]} 15. exd5 {[%clk 0:02:24]}  e4 {[%clk 0:02:18]} 16. Ne5 {[%clk 0:02:13]}  Nxe5 {[%clk 0:01:44]} 17. dxe5 {[%clk 0:02:12]}  Bxe5 {[%clk 0:01:44]} 18. dxc6 {[%clk 0:02:00]}  Qc7 {[%clk 0:01:44]} 19. Nh5 {[%clk 0:01:48]}  Qxc6 {[%clk 0:01:06]} 20. Be3 {[%clk 0:01:35]}  Be6 {[%clk 0:00:57]} 21. Nxf6+ {[%clk 0:01:22]}  Bxf6 {[%clk 0:00:56]} 22. Qh5 {[%clk 0:01:22]}  Bxb3 {[%clk 0:00:38]} 23. axb3 {[%clk 0:01:23]}  a6 {[%clk 0:00:39]} 24. Rad1 {[%clk 0:01:07]}  Rad8 {[%clk 0:00:38]} 25. b4 {[%clk 0:01:06]}  Rd3 {[%clk 0:00:30]} 26. Qg4 {[%clk 0:00:54]}  Kh7 {[%clk 0:00:17]} 27. Rxd3 {[%clk 0:00:52]}  exd3 {[%clk 0:00:18]} 28. Qf5+ {[%clk 0:00:52]}  g6 {[%clk 0:00:18]} 29. Qxd3 {[%clk 0:00:52]}  Bg5 {[%clk 0:00:18]} 30. Bd2 {[%clk 0:00:44]}  Bxd2 {[%clk 0:00:16]} 31. Rxe8 {[%clk 0:00:39]}  Qxe8 {[%clk 0:00:17]} 32. Qxd2 {[%clk 0:00:40]}  Qe4 {[%clk 0:00:17]} 33. f3 {[%clk 0:00:37]}  Qb1+ {[%clk 0:00:16]} 34. Kf2 {[%clk 0:00:38]}  Kg7 {[%clk 0:00:16]} 35. Ke3 {[%clk 0:00:38]}  h5 {[%clk 0:00:14]} 36. Kd4 {[%clk 0:00:36]}  Qg1+ {[%clk 0:00:13]} 37. Kd5 {[%clk 0:00:34]}  Kg8 {[%clk 0:00:13]} 38. Kd6 {[%clk 0:00:28]}  Qb6+ {[%clk 0:00:12]} 39. Ke7 {[%clk 0:00:23]}  Qe6+ {[%clk 0:00:12]} 40. Kd8 {[%clk 0:00:24]}  Kf8 {[%clk 0:00:12]} 41. Qd4 {[%clk 0:00:14]}  Kg8 {[%clk 0:00:10]} 42. Kc7 {[%clk 0:00:12]}  Qc6+ {[%clk 0:00:10]} 43. Kb8 {[%clk 0:00:12]}  b5 {[%clk 0:00:10]} 44. Ka7 {[%clk 0:00:11]}  Qe6 {[%clk 0:00:07]} 45. h4 {[%clk 0:00:10]}  Kh7 {[%clk 0:00:06]} 46. Qb6 {[%clk 0:00:07]}  Qe2 {[%clk 0:00:05]} 47. Qf6 {[%clk 0:00:06]}  Kg8 {[%clk 0:00:05]} 48. Kxa6 {[%clk 0:00:05]}  Qxg2 {[%clk 0:00:04]} 49. Kxb5 {[%clk 0:00:05]}  Qxb2 {[%clk 0:00:04]} 50. Qd8+ {[%clk 0:00:04]}  Kg7 {[%clk 0:00:04]} 51. Qd4+ {[%clk 0:00:05]}  Kg8 {[%clk 0:00:04]} 52. Kc6 {[%clk 0:00:06]}  Qe2 {[%clk 0:00:03]} 53. Qd5 {[%clk 0:00:06]}  Qe3 {[%clk 0:00:03]} 54. c4 {[%clk 0:00:06]}  Qf4 {[%clk 0:00:03]} 55. b5 {[%clk 0:00:06]}  Qxh4 {[%clk 0:00:03]} 56. b6 {[%clk 0:00:06]}  Qf6+ {[%clk 0:00:03]} 57. Kb5 {[%clk 0:00:06]}  h4 {[%clk 0:00:04]} 58. b7 {[%clk 0:00:07]}  Qe7 {[%clk 0:00:04]} 59. Qc6 {[%clk 0:00:06]}  h3 {[%clk 0:00:03]} 60. Qc8+ {[%clk 0:00:06]}  Kg7 {[%clk 0:00:04]} 61. b8=Q {[%clk 0:00:07]}  Qg5+ {[%clk 0:00:03]} 62. c5 {[%clk 0:00:07]}  h2 {[%clk 0:00:02]} 63. Qh8# {[%clk 0:00:07]} 1-0


[Site "https://www.chess.com"]

[Event "Titled Tuesday Blitz October 11 Early 2022"]
[White "Wiegmann, Sascha"]
[Black "Buscar, Michael"]
[WhiteFideId "4682041"]
[BlackFideId "2603616"]
[WhiteElo "2259"]
[BlackElo "2010"]
[Result "1-0"]
[Round "05"]
[TimeControl "180+1"]
[Date "2022.10.12"]
[WhiteClock "0:00:06"]
[BlackClock "0:00:16"]

1. Nf3 {[%clk 0:03:00]}  d5 {[%clk 0:02:48]} 2. g3 {[%clk 0:03:00]}  Nc6 {[%clk 0:02:46]} 3. Bg2 {[%clk 0:03:00]}  e5 {[%clk 0:02:47]} 4. d3 {[%clk 0:03:00]}  Nf6 {[%clk 0:02:47]} 5. O-O {[%clk 0:03:01]}  Be7 {[%clk 0:02:47]} 6. c4 {[%clk 0:03:00]}  Be6 {[%clk 0:02:45]} 7. cxd5 {[%clk 0:02:59]}  Nxd5 {[%clk 0:02:45]} 8. Nc3 {[%clk 0:02:59]}  Qd7 {[%clk 0:02:42]} 9. a3 {[%clk 0:02:36]}  Nb6 {[%clk 0:02:35]} 10. Be3 {[%clk 0:02:29]}  f6 {[%clk 0:02:28]} 11. Rc1 {[%clk 0:02:28]}  O-O-O {[%clk 0:02:26]} 12. Nb5 {[%clk 0:02:10]}  Kb8 {[%clk 0:02:21]} 13. b4 {[%clk 0:01:41]}  g5 {[%clk 0:02:04]} 14. Nd2 {[%clk 0:01:33]}  Nxb4 {[%clk 0:01:57]} 15. Rxc7 {[%clk 0:01:09]}  Qxb5 {[%clk 0:01:25]} 16. Rxb7+ {[%clk 0:01:09]}  Kc8 {[%clk 0:01:25]} 17. Rxe7 {[%clk 0:00:54]}  N4d5 {[%clk 0:01:07]} 18. Rxe6 {[%clk 0:00:46]}  Kd7 {[%clk 0:01:07]} 19. Rxb6 {[%clk 0:00:40]}  Nxb6 {[%clk 0:01:06]} 20. Ne4 {[%clk 0:00:40]}  Ke7 {[%clk 0:01:04]} 21. Qc1 {[%clk 0:00:20]}  Rc8 {[%clk 0:01:03]} 22. Bc5+ {[%clk 0:00:19]}  Kf7 {[%clk 0:01:00]} 23. h4 {[%clk 0:00:15]}  h6 {[%clk 0:01:00]} 24. Qe3 {[%clk 0:00:12]}  Nd5 {[%clk 0:00:54]} 25. Nd6+ {[%clk 0:00:11]}  Kg7 {[%clk 0:00:49]} 26. Bxd5 {[%clk 0:00:06]}  Qxc5 {[%clk 0:00:49]} 27. Nf5+ {[%clk 0:00:07]}  Kg6 {[%clk 0:00:49]} 28. Qe4 {[%clk 0:00:07]}  Qb6 {[%clk 0:00:34]} 29. Ne7+ {[%clk 0:00:06]}  Kg7 {[%clk 0:00:35]} 30. Qg6+ {[%clk 0:00:06]}  Kf8 {[%clk 0:00:33]} 31. Nxc8 {[%clk 0:00:07]}  Qc7 {[%clk 0:00:27]} 32. Nd6 {[%clk 0:00:07]}  Qe7 {[%clk 0:00:18]} 33. Nf5 {[%clk 0:00:06]}  Qd7 {[%clk 0:00:18]} 34. Qxf6+ {[%clk 0:00:06]}  Ke8 {[%clk 0:00:16]} 35. Qxh8# {[%clk 0:00:06]} 1-0


[Site "https://www.chess.com"]

[Event "Titled Tuesday Blitz October 11 Early 2022"]
[White "Yanchenko, Roman"]
[Black "Krysa, Leandro"]
[WhiteFideId "4137329"]
[BlackFideId "116807"]
[WhiteElo "2778"]
[BlackElo "2632"]
[Result "0-1"]
[Round "05"]
[TimeControl "180+1"]
[Date "2022.10.12"]
[WhiteClock "0:00:03"]
[BlackClock "0:00:08"]

1. d4 {[%clk 0:02:58]}  g6 {[%clk 0:02:59]} 2. c4 {[%clk 0:02:58]}  Bg7 {[%clk 0:02:59]} 3. Nf3 {[%clk 0:02:59]}  d6 {[%clk 0:02:59]} 4. Nc3 {[%clk 0:02:59]}  e5 {[%clk 0:02:53]} 5. dxe5 {[%clk 0:02:59]}  dxe5 {[%clk 0:02:53]} 6. Qxd8+ {[%clk 0:03:00]}  Kxd8 {[%clk 0:02:53]} 7. e4 {[%clk 0:03:00]}  c6 {[%clk 0:02:52]} 8. Be3 {[%clk 0:02:59]}  Kc7 {[%clk 0:02:51]} 9. Ng5 {[%clk 0:02:57]}  Nh6 {[%clk 0:02:49]} 10. O-O-O {[%clk 0:02:56]}  f6 {[%clk 0:02:47]} 11. Bc5 {[%clk 0:02:39]}  b6 {[%clk 0:02:26]} 12. Bd6+ {[%clk 0:02:39]}  Kb7 {[%clk 0:02:26]} 13. Nf3 {[%clk 0:02:36]}  Ng4 {[%clk 0:02:18]} 14. Rg1 {[%clk 0:01:58]}  Nxf2 {[%clk 0:02:15]} 15. Re1 {[%clk 0:01:58]}  Rd8 {[%clk 0:02:01]} 16. Be7 {[%clk 0:01:46]}  Nd3+ {[%clk 0:01:49]} 17. Bxd3 {[%clk 0:01:37]}  Rxd3 {[%clk 0:01:49]} 18. Rd1 {[%clk 0:01:37]}  Rxd1+ {[%clk 0:01:21]} 19. Rxd1 {[%clk 0:01:38]}  Be6 {[%clk 0:01:21]} 20. b3 {[%clk 0:01:28]}  Na6 {[%clk 0:01:20]} 21. Rd6 {[%clk 0:01:25]}  Nc7 {[%clk 0:01:17]} 22. Bd8 {[%clk 0:01:21]}  Bg4 {[%clk 0:00:53]} 23. Bxf6 {[%clk 0:00:44]}  Ne8 {[%clk 0:00:49]} 24. Bxg7 {[%clk 0:00:45]}  Nxd6 {[%clk 0:00:49]} 25. Bxe5 {[%clk 0:00:45]}  Bxf3 {[%clk 0:00:43]} 26. gxf3 {[%clk 0:00:44]}  Nf7 {[%clk 0:00:43]} 27. Bf4 {[%clk 0:00:44]}  g5 {[%clk 0:00:42]} 28. Bg3 {[%clk 0:00:44]}  h5 {[%clk 0:00:42]} 29. Kd2 {[%clk 0:00:44]}  h4 {[%clk 0:00:41]} 30. Bf2 {[%clk 0:00:43]}  Rd8+ {[%clk 0:00:41]} 31. Ke2 {[%clk 0:00:43]}  Ne5 {[%clk 0:00:33]} 32. Be3 {[%clk 0:00:22]}  Rf8 {[%clk 0:00:32]} 33. Bxg5 {[%clk 0:00:17]}  Nxf3 {[%clk 0:00:32]} 34. Be7 {[%clk 0:00:17]}  Rf7 {[%clk 0:00:31]} 35. Ke3 {[%clk 0:00:17]}  Rxe7 {[%clk 0:00:24]} 36. Kxf3 {[%clk 0:00:17]}  Kc7 {[%clk 0:00:23]} 37. Ne2 {[%clk 0:00:15]}  Kd6 {[%clk 0:00:23]} 38. Nd4 {[%clk 0:00:16]}  Rf7+ {[%clk 0:00:20]} 39. Ke3 {[%clk 0:00:16]}  c5 {[%clk 0:00:18]} 40. Nf5+ {[%clk 0:00:16]}  Ke6 {[%clk 0:00:17]} 41. Nxh4 {[%clk 0:00:15]}  Rg7 {[%clk 0:00:16]} 42. Kf3 {[%clk 0:00:12]}  Rg1 {[%clk 0:00:16]} 43. Ng2 {[%clk 0:00:12]}  Ra1 {[%clk 0:00:15]} 44. Nf4+ {[%clk 0:00:12]}  Kf7 {[%clk 0:00:13]} 45. e5 {[%clk 0:00:11]}  Rxa2 {[%clk 0:00:13]} 46. Ke4 {[%clk 0:00:10]}  Rxh2 {[%clk 0:00:13]} 47. Kd5 {[%clk 0:00:11]}  Rb2 {[%clk 0:00:13]} 48. e6+ {[%clk 0:00:10]}  Ke7 {[%clk 0:00:13]} 49. Ng6+ {[%clk 0:00:11]}  Ke8 {[%clk 0:00:13]} 50. Ne5 {[%clk 0:00:09]}  Rxb3 {[%clk 0:00:12]} 51. Ng4 {[%clk 0:00:04]}  a5 {[%clk 0:00:12]} 52. Kd6 {[%clk 0:00:05]}  Rd3+ {[%clk 0:00:12]} 53. Kc6 {[%clk 0:00:05]}  a4 {[%clk 0:00:12]} 54. Nf6+ {[%clk 0:00:05]}  Ke7 {[%clk 0:00:11]} 55. Nd5+ {[%clk 0:00:05]}  Ke8 {[%clk 0:00:10]} 56. Nc7+ {[%clk 0:00:05]}  Kd8 {[%clk 0:00:08]} 57. e7+ {[%clk 0:00:04]}  Kxe7 {[%clk 0:00:07]} 58. Nd5+ {[%clk 0:00:03]}  Rxd5 {[%clk 0:00:07]} 59. cxd5 {[%clk 0:00:03]}  Kd8 {[%clk 0:00:07]} 60. Kxb6 {[%clk 0:00:02]}  a3 {[%clk 0:00:07]} 61. Kxc5 {[%clk 0:00:03]}  a2 {[%clk 0:00:08]} 0-1


[Site "https://www.chess.com"]